Cogmind - Beta 13 @@@ ROGUE MODE // 2024.04.04 @ 18:56:24 Player: ILikeVoltron Result: Destroyed by H-61 Shepherd with Heavy Assault Cannon Performance ------------- Evolutions (2) 1000 Regions Visited (3) 600 Robots Destroyed (41) 205 Value Destroyed (1376) 1376 Prototype IDs (3) 60 Alien Tech Used (0) 0 Bonus (11) 11 TOTAL SCORE: 3252 Bonus ------- High Alert Combat Kills 11 Cogmind --------- Core Integrity 0/550 Matter 300/300 Energy 160/160 System Corruption 0% Temperature Cool (0) Movement Treading (240) Ox1 Location -8/Materials Parts ------- > --- POWER (1) -------- Light Nuclear Core > --- PROPULSION (4) --- Light Treads Titanium Leg > --- UTILITY (4) ------ Heat Sink Large Storage Unit Improved Targeting Computer ECM Suite > --- WEAPON (2) ------- Heavy Hammer > --- INVENTORY (15) --- Light Nuclear Core High-capacity Storage Unit Large Matter Pod (150) Compact Matter Pod (150) Weight Redist. System Improved Sensor Array Improved Terrain Scanner Improved Terrain Scan Processor Seismic Detector Improved Targeting Computer Light Armor Plating Medium Armor Plating Particle Gun Flak Cannon Mini Grenade Launcher Peak State ------------ > --- POWER ------------ Improved Ion Engine > --- PROPULSION ------- Titanium Leg Titanium Leg Titanium Leg Titanium Leg > --- UTILITY ---------- Improved Heat Sink Large Storage Unit Improved Terrain Scanner Improved Targeting Computer > --- WEAPON ----------- Heavy Particle Cannon Heavy Assault Rifle > --- INVENTORY -------- Titanium Leg High-capacity Storage Unit Large Matter Pod Compact Matter Pod Weight Redist. System Improved Sensor Array Improved Terrain Scanner Improved Terrain Scan Processor Seismic Detector Improved Targeting Computer ECM Suite Light Armor Plating Medium Armor Plating Mini Grenade Launcher Heavy Hammer [Rating: 31] Favorites ----------- Power Ion Engine Engine Ion Engine Power Core Light Nuclear Core Propulsion Improved Aluminum Leg Treads Light Treads Leg Improved Aluminum Leg Utility Large Storage Unit Device Improved Terrain Scanner Storage Large Storage Unit Processor Improved Targeting Computer Protection Light Armor Plating Weapon Heavy Hammer Energy Gun Medium Laser Energy Cannon Beam Cannon Ballistic Gun Assault Rifle Launcher Mini Grenade Launcher Impact Weapon Heavy Hammer Slashing Weapon Katana Build | -11 -10 -9 -8 ------- Run | Yrd Mat Mat Mat Slots Evolved 4 | . . 2 2 Power . | . . . . Propulsion 2 | . . 1 1 Utility 2 | . . 1 1 Weapon . | . . . . Parts Attached 55 | . 2 28 25 Power 4 | . . 2 2 Engine 3 | . . 2 1 Core 1 | . . . 1 Reactor . | . . . . Propulsion 15 | . . 7 8 Treads 4 | . . 3 1 Leg 11 | . . 4 7 Wheel . | . . . . Hover . | . . . . Flight . | . . . . Utility 17 | . 1 9 7 Device 9 | . 1 4 4 Storage 5 | . . 4 1 Processor 2 | . . 1 1 Hackware . | . . . . Protection 1 | . . . 1 Artifact . | . . . . Weapon 19 | . 1 10 8 Energy Gun 5 | . 1 3 1 Energy Cannon 3 | . . 2 1 Ballistic Gun 2 | . . . 2 Ballistic Cannon . | . . . . Launcher 5 | . . 3 2 Special Weapon . | . . . . Impact Weapon 3 | . . 2 1 Slashing Weapon 1 | . . . 1 Piercing Weapon . | . . . . Special Melee Weapon . | . . . . Unidentified Prototypes 1 | . . 1 . Parts Lost 23 | . . 9 14 Power 2 | . . 1 1 Propulsion 9 | . . 4 5 Utility 3 | . . . 3 Weapon 9 | . . 4 5 Highest Loss Streak 9 | . . 5 9 To Critical Strikes . | . . . . Average Slot Usage (%) 92 | . 93 96 86 Engine 9 | . 14 10 5 Treads 4 | . . 7 3 Leg 25 | . 28 24 25 Device 15 | . 8 18 15 Storage 11 | . 14 11 10 Processor 3 | . . 2 6 Energy Gun 4 | . 14 4 . Energy Cannon 6 | . . 8 6 Ballistic Gun 3 | . 14 1 1 Impact Weapon 4 | . . 5 6 Naked Turns . | . . . . Heaviest Build 40 | 14 15 38 40 Greatest Support 68 | 20 20 60 68 Greatest Overweight (x) 2 | . . 2 2 Average Overweight (x) . | . . . . Largest Inventory Capacity 20 | . 8 20 15 Average Capacity 12 | . 8 13 15 Most Carried 16 | . 8 16 15 Average Carried 11 | . 7 11 14 Final Capacity 15 | 8 8 15 15 Final Carried 15 | 6 8 15 15 Class Distribution -------------------- 100% | Mutant Dominant Class ---------------- Mutant | -10/Materials Mutant | -9/Materials Mutant | -8/Materials Resources | -11 -10 -9 -8 ----------- Run | Yrd Mat Mat Mat Matter Collected 1208 | 200 71 341 596 Remotely . | . . . . Salvage Created 1439 | . 168 560 711 Parts 76 | . 17 29 30 Haulers Intercepted 1 | . . 1 . Recyclers Shooed 3 | . . 2 1 Parts Field Recycled . | . . . . Retrieved Matter . | . . . . Parts Self-Destructed . | . . . . Prevented . | . . . . Kills | -11 -10 -9 -8 ------- Run | Yrd Mat Mat Mat Combat Hostiles Destroyed 32 | . 5 11 16 Melee 5 | . . 1 4 Guns 7 | . 5 2 . Cannons 12 | . . 6 6 AOE 7 | . . 2 5 Classes Destroyed 11 | . 4 4 3 Worker 1 | . . 1 . Builder 1 | . . . 1 Tunneler 1 | . 1 . . Hauler 1 | . . 1 . Recycler 2 | . . 1 1 Watcher 3 | . 1 . 2 Swarmer 5 | . 3 2 . Grunt 20 | . 2 7 11 Sentry 4 | . . 2 2 Hunter 2 | . . . 2 Heavy 1 | . . . 1 Best Kill Streak 7 | . 4 5 7 Combat Bots Only 5 | . 3 5 5 Max Kills in Single Turn 3 | . 1 2 3 Gunslinging . | . . . . Exploded 2 | . . 1 2 Melee 1 | . . 1 1 Uniques/NPCs Destroyed . | . . . . Combat | -11 -10 -9 -8 -------- Run | Yrd Mat Mat Mat Hostile Shots Fired 321 | . 25 146 150 Missed 89 | . 3 44 42 Damage Taken 3696 | . 280 1262 2154 Core 825 | . 20 254 551 Absorbed by Shields . | . . . . Core Remaining (%) 76 | 100 92 36 . Volleys Fired 89 | . 17 46 26 Largest 2 | . 2 2 2 Hottest 110 | . 70 110 105 Shots Fired 166 | . 34 82 50 Gun 85 | . 34 35 16 Cannon 68 | . . 43 25 Launcher 13 | . . 4 9 Special . | . . . . Kinetic 46 | . 17 14 15 Thermal 89 | . 9 54 26 Explosive 13 | . . 4 9 Electromagnetic 18 | . 8 10 . Robot Hit Streak 11 | . 9 6 11 Robot Miss Streak 4 | . 3 4 3 Penetration Max . | . . . . Secondary Targets . | . . . . Shots Hit Robots 131 | . 23 54 54 Core Hits 76 | . 10 25 41 Critical Kills 1 | . . . 1 Critical Parts Destroyed 3 | . . 1 2 Critical Strikes 7 | . . 3 4 Burn 2 | . . 2 . Smash 4 | . . 1 3 Sever 1 | . . . 1 Melee Attacks 42 | . . 14 28 Impact 34 | . . 14 20 Slashing 8 | . . . 8 Piercing . | . . . . Sneak Attacks 2 | . . 1 1 Combat Hostiles . | . . . . Follow-up Attacks 1 | . . . 1 Damage Inflicted 3709 | . 305 1352 2052 Guns 791 | . 305 318 168 Cannons 901 | . . 476 425 Explosions 1168 | . . 371 797 Melee 849 | . . 187 662 Ramming . | . . . . Kinetic 433 | . 180 100 153 Thermal 1203 | . 49 714 440 Explosive 1018 | . . 221 797 Electromagnetic 206 | . 76 130 . Impact 666 | . . 187 479 Slashing 183 | . . . 183 Piercing . | . . . . Highest Corruption 1 | . . 1 . Average Corruption 1 | . . 1 . Corruption Purged . | . . . . Corruption Blocked . | . . . . Effects 4 | . . 4 . Heat Flow Errors 2 | . . 2 . Parts Fused 1 | . . 1 . Alerts 1 | . . 1 . Overload Shots . | . . . . Overflow Damage 243 | . . 72 171 Projectiles 17 | . . . 17 Explosions 42 | . . . 42 Melee 184 | . . 72 112 Knockbacks 3 | . . 2 1 Impact 3 | . . 2 1 Kinetic . | . . . . Secondary . | . . . . Self-Inflicted Damage 146 | . . 127 19 Shots 4 | . . 3 1 Rammed . | . . . . Targets Rammed . | . . . . Kicked . | . . . . Crushed . | . . . . Highest Temperature 272 | . 105 272 241 Average Temperature 83 | . 41 89 101 Received Heat Transfer 1302 | . 168 477 657 Effects 2 | . . 1 1 Energy Bleed 2 | . . 1 1 Siege Activations . | . . . . Robots Corrupted . | . . . . Combat Hostiles . | . . . . Parts Fried 3 | . 1 1 1 Impact Corruptions 4 | . . 2 2 Robots Melted . | . . . . Combat Hostiles . | . . . . Parts Melted 6 | . . 6 . Heat Transferred 2357 | . 148 1543 666 Parts Sabotaged . | . . . . Parts Stolen . | . . . . Parts Stripped . | . . . . Power Chain Reactions . | . . . . Alert | -11 -10 -9 -8 ------- Run | Yrd Mat Mat Mat Peak Influence 415 | . 147 323 415 Initial 61 | . . 61 40 Average 175 | . 94 186 203 Maximum Alert Level 2 | . . 1 2 Low Security (%) 61 | . 100 62 38 Level 1 37 | . . 37 58 Level 2 . | . . . 2 Level 3 . | . . . . Level 4 . | . . . . Level 5 . | . . . . High Security . | . . . . Max Security . | . . . . Squads Dispatched 6 | . . 1 5 Investigation 1 | . . 1 . Extermination . | . . . . Reinforcement 5 | . . . 5 Assault . | . . . . Garrison . | . . . . Intercept . | . . . . Searches Triggered . | . . . . Construction Impeded 1 | . . . 1 Haulers Reinforced . | . . . . Active Scanning Responses . | . . . . Cargo Convoy Interrupts . | . . . . Stealth | -11 -10 -9 -8 --------- Run | Yrd Mat Mat Mat Distress Signals 7 | . 2 2 3 Communications Jammed . | . . . . Distress Signals . | . . . . Times Spotted 53 | . 7 25 21 Peak Tracking Total 10 | . 4 10 7 Tactical Retreats 6 | . . 3 3 Traps | -11 -10 -9 -8 ------- Run | Yrd Mat Mat Mat Traps Triggered 1 | . . 1 . Indirectly . | . . . . Trap Hack Attempts . | . . . . Triggered . | . . . . Disarmed . | . . . . Reprogrammed . | . . . . Reused . | . . . . Traps Extracted . | . . . . Installed . | . . . . Triggered . | . . . . Machines | -11 -10 -9 -8 ---------- Run | Yrd Mat Mat Mat Machines Disabled 3 | . . 2 1 Max in Single Turn 2 | . . 2 1 Machines Repaired . | . . . . Machines Dismantled . | . . . . Machines Sabotaged . | . . . . Overloaded Fab Kills . | . . . . Hacking | -11 -10 -9 -8 --------- Run | Yrd Mat Mat Mat Machines Accessed 7 | . 3 4 . Terminals 7 | . 3 4 . Fabricators . | . . . . Repair Stations . | . . . . Recycling Units . | . . . . Scanalyzers . | . . . . Garrison Access . | . . . . Total Hacks 15 | . 5 10 . Successful 4 | . . 4 . Failed 11 | . 5 6 . Catastrophic . | . . . . Database Lockouts . | . . . . Manual . | . . . . Terminals 15 | . 5 10 . Fabricators . | . . . . Repair Stations . | . . . . Recycling Units . | . . . . Scanalyzers . | . . . . Garrison Access . | . . . . Terminal Hacks 4 | . . 4 . Prototype ID Bank 1 | . . 1 . Branch Access Points 1 | . . 1 . Transport Status 1 | . . 1 . Zone Layout 1 | . . 1 . Fabricator Hacks . | . . . . Repair Station Hacks . | . . . . Recycling Unit Hacks . | . . . . Scanalyzer . | . . . . Garrison Access Hacks . | . . . . Unauthorized Hacks . | . . . . Terminals . | . . . . Fabricators . | . . . . Repair Stations . | . . . . Recycling Units . | . . . . Scanalyzers . | . . . . Garrison Access . | . . . . Data Cores Recovered . | . . . . Used . | . . . . Hacking Detections 7 | . 3 4 . Full Trace Events . | . . . . Feedback Events . | . . . . Feedback Blocked . | . . . . Robot Schematics Acquired . | . . . . Robots Built . | . . . . Authchips . | . . . . Time . | . . . . Total Robot Build Rating . | . . . . Part Schematics Acquired . | . . . . Parts Built . | . . . . Authchips . | . . . . Time . | . . . . Total Part Build Rating . | . . . . Parts Repaired . | . . . . Time . | . . . . Parts Recycled . | . . . . Recycled Matter . | . . . . Retrieved Matter . | . . . . Retrieved Components . | . . . . Parts Scanalyzed . | . . . . Part Schematics Acquired . | . . . . Parts Damaged . | . . . . Bothacking | -11 -10 -9 -8 ------------ Run | Yrd Mat Mat Mat Used RIF Installer . | . . . . Robots Hacked . | . . . . Non-combat . | . . . . Combat . | . . . . Robot Hacks Applied . | . . . . Relay Couplers Released . | . . . . Fabnet Peak Effective % . | . . . . Robots Rewired . | . . . . Allies Hacked . | . . . . Hacks Repelled . | . . . . Allies | -11 -10 -9 -8 -------- Run | Yrd Mat Mat Mat Total Allies . | . . . . Largest Group . | . . . . Highest-Rated Group . | . . . . Highest-Rated Ally . | . . . . Total Orders . | . . . . Ally Attacks . | . . . . Total Damage . | . . . . Kills . | . . . . Allies Corrupted . | . . . . Allies Melted . | . . . . Intel | -11 -10 -9 -8 ------- Run | Yrd Mat Mat Mat Robot Analysis Total . | . . . . Derelict Logs Recovered . | . . . . Drone Launches . | . . . . Drone Recoveries . | . . . . Exploration | -11 -10 -9 -8 ------------- Run | Yrd Mat Mat Mat Turns Passed 1726 | . 313 874 539 Spaces Moved 850 | 1 206 450 193 Core . | . . . . Treads 143 | . . 99 44 Legs 707 | 1 206 351 149 Wheels . | . . . . Hover . | . . . . Flight . | . . . . Fastest Speed 120 | 120 120 120 127 Average Speed 133 | 120 120 131 154 Slowest Speed 270 | 120 120 260 270 Overloaded Moves . | . . . . Propulsion Burnouts . | . . . . Robots Hopped . | . . . . Cave-ins Triggered . | . . . . Exploration Rate (%) 22 | 2 30 43 16 Regions Visited 3 Branch Regions . Pre-discovered Areas . | . . . . Known Exits Taken . | . . . . Unknown Exits Taken 3 | 1 1 1 . Scrap Searched . | . . . . Spaces Dug 10 | . . 6 4 Terrain Destroyed 84 | . . 39 45 Melee 10 | . . 6 4 Projectile 6 | . . . 6 AOE 68 | . . 33 35 Terrain Rammed . | . . . . Walls Destroyed . | . . . . Machines Disabled . | . . . . Actions | -11 -10 -9 -8 --------- Run | Yrd Mat Mat Mat Total 1201 | . 238 627 336 Wait 115 | . 9 56 50 Move 847 | . 205 449 193 Hop . | . . . . Pick Up 31 | . 4 20 7 Fast Attach 20 | . . 6 14 Attach 17 | . 1 10 6 Detach 6 | . . 4 2 Swap 18 | . 1 12 5 Drop 17 | . 1 10 6 Fire 89 | . 17 46 26 Melee 41 | . . 14 27 Ram . | . . . . Kick . | . . . . Crush . | . . . . Escape Stasis . | . . . . Rewire . | . . . . Trap . | . . . . Miscellaneous . | . . . . Route ------- -11/Scrapyard -10/Materials -9/Materials (discovered 4 exits: [*Mat x2] / Min x2) -8/Materials History --------- Turn | Location | Event 1 | -11/Scrapyard | Discovered new exit (range 0) 1 | -11/Scrapyard | Entered Materials 75 | -10/Materials | Discovered new exit (range 13) 305 | -10/Materials | Build established: Mutant 314 | -10/Materials | Entered another Materials area 314 | -9/Materials | Evolved 2 slots: Propulsion x1, Utility x1 476 | -9/Materials | Lost 3 parts (1p1n1w) 562 | -9/Materials | Discovered new exit (range 10) 937 | -9/Materials | Core integrity fell below 50% 1031 | -9/Materials | Lost 5 parts (3n2w) 1065 | -9/Materials | Identified exit to Mines 1125 | -9/Materials | Discovered new exit (range 13) 1188 | -9/Materials | Entered another Materials area 1188 | -8/Materials | Evolved 2 slots: Propulsion x1, Utility x1 1393 | -8/Materials | Core integrity fell below 50% 1559 | -8/Materials | Core integrity fell below 20% 1624 | -8/Materials | Lost 9 parts (1p4n2u2w) 1727 | -8/Materials | Destroyed by H-61 Shepherd with Heavy Assault Cannon Last Messages --------------- 01630_ Acquired Particle Gun. 01656_ Acquired Lgt. Nuclear Core. 01659_ ALERT: Security rotation in progress. 01659_ Acquired Lgt. Treads. 01670_ Acquired Heat Sink. 01676_ K-01 Serf collects debris. 01693_ ALERT: Suspicious intruders detected, dispatching Specialist reinforcements to area. 01695_ Sneak attack on K-01 Serf. 01695_ Destroyed Wheel. 01701_ W-25 Informer sends out distress signal. 01713_ G-47 Trooper Aluminum Leg severed. 01713_ Hvy. Hammer follow-up attack on G-47 Trooper. 01713_ G-47 Trooper knocked back. 01720_ U-05 Engineer builds a Wall. 01721_ G-47 Trooper destroyed. 01722_ Acquired 20 matter. 01724_ U-05 Engineer builds a Wall. 01724_ Katana destroyed. 01727_ H-61 Shepherd calls for reinforcements. 01727_ ALERT: Hostile activity reported, dispatching reinforcements to area. Map ----- +----------------------------------------------------+ | ??????????????????????????????????????? | | ??????????????????????????????????????? | | ??????????????????????????????????????? | | ??????????????????????????????????????? | | ??????????????????????????????????????? | | ??????? ??????????????????????????????? | | ??????? ??????????????????????????????? | | ??????? ??????????????????????????????? | | #?????# ??????????????????????????????? | | ??????# ??????????????????????????????? | | ?????## ####??????????????????????????? | | ?????# ##+???? ? ?????????????????? | | ?????# ????? T ????????????????? | | ?????# ?????? ????????????????? | | ?????? ?????? ????????????????? | | ?????? ??????? #????????????????? | | ####### #?????#? #????????????????? | | # # #?????#? #????????????????? | | # # #?#????# #????????????????? | | # # #??????# #????????????????? | | #""" # #??????# #????????????????? | | #""" # = #????#?# #????????????????? | | #""" %# =#?????## #????????????????? | | #""" =+! ######## #???#?#??????????? | | #"" #[ #?#[% ## ## ? ????????????? | | # # ####@## #???????????????? | | # = # % wHu #????????"??????? | | # # % ! + ""?? ????????? | | # % # a # ""? ?????????? | | #########+####### # ????????? | | ## #### ## ## ????????? | | ?# """# [ [# ## ???????? | | ?# """# # ####?#?????????? | | ?# """# # # ???????? | | ?# # "T" # "" """ ???????? | | ?# """# """ # "" """ ##?????? | | ?# """# + """ """ #??????? | | ?# """#### ### # #??????? | | ?# ???# # #??????+ | | ?#########??## #??????? | | ?????????#??# #??????+ | | ????????????# [ ##########??????? | | ??########### " # #???? ??? | | ??# " " **# = #?#?????? | | ??# # """ # ] #???????? | | ??# # # =] #??#????? | | ??# + "==] #????#??? | | ??# # "" " #???#???? | | ??# # """ # ##??????? | | ??# # """ # #?#?????? | +----------------------------------------------------+ Best States ------------- Heat Dissipation 45 Energy Generation 14 Energy Capacity 430 Matter Stores 300 Matter Capacity 300 Sight Range 16 Robot Scan Range 15 Terrain Scan Range 16 Terrain Scan Density 10 ECM Strength 1 Additional Mass Support 6 Armor Coverage 150 Evasion (%) 55 Targeting Accuracy 6 Recoil Reduction 3 Item Schematics ----------------- None Robot Schematics ------------------ None Fabricated ------------ Nothing Alien Tech Used ----------------- None Achievements -------------- None Challenges ------------ None Game ------ Seed FluxCarbideMeganuke Manual? 0 Play Time 00:24:41 Cumulative 114.0 hours Start 2024.04.04 @ 18:33:34 End 2024.04.04 @ 18:56:24 Sessions 1 Manual Loads 0 Difficulty Rogue Special Mode None Game No. 182 Rogue 178 Adventurer 0 Explorer 4 Win Type - Total 0 Types 0/0/0/0/0/0/0/0/0 Lore% 25 Gallery% 42 Achievement% 33 Wizard Run 0 Options --------- Layout 1 ASCII 0 Keyboard 1 Movement Arrows Keybinds 0 Fullscreen 2 Font 32/SmallcapsGlow Map View 130x35 Zoom Use 0% Tactical HUD 1 Map Filters NONE Filters NONE Steam 1 RUN: 6adceb86-db96-4567-ac5f-c2d906cf4a94